bitfinex/quotes_SOLUSD_20251208
["timestamp","ask_amount","ask_price","bid_price","bid_amount"]
[1765204834952,6.11845214,137.53,137.47,6.11845214]
[1765204835262,6.84805961,137.52,137.45,6.11845214]
[1765204835428,0.72960747,137.52,137.47,13.39276653]
[1765204835750,0.72960747,137.53,137.48,6.11845214]
[1765204835933,0.72960747,137.54,137.49,6.11845214]
[1765204836249,0.71,137.55,137.5,6.11845214]
[1765204836452,6.82845214,137.57,137.5,6.11845214]
[1765204836640,6.82845214,137.57,137.51,6.11845214]
[1765204836843,0.71,137.57,137.52,6.11845214]
[1765204837053,0.1,137.58,137.54,6.11845214]
[1765204837356,0.1,137.58,137.54,7.27061218]
[1765204837547,0.1,137.58,137.54,13.38906432]
[1765204837722,0.1,137.58,137.55,6.11845214]
[1765204838253,0.1,137.58,137.57,6.11845214]
[1765204838633,0.1,137.58,137.57,15.64839706]
[1765204838828,0.1,137.59,137.57,15.64839706]
[1765204839030,1e-08,137.59,137.58,15.64839706]
[1765204839453,0.1,137.65,137.6,8.80994492]
[1765204839752,0.1,137.65,137.64,6.11845214]
[1765204840228,0.1,137.65,137.64,6.83845214]
[1765204840549,0.1,137.65,137.62,8.80994492]
[1765204840550,0.81,137.65,137.58,25.43974414]
[1765204840760,0.81,137.65,137.59,6.11845214]
[1765204840933,0.72960747,137.64,137.59,6.11845214]
[1765204841553,7.55805961,137.64,137.57,21.34744683]
[1765204841847,6.11845214,137.62,137.55,6.11845214]
[1765204842050,8.70513942,137.64,137.53,6.11845214]
[1765204842051,6.11845214,137.6,137.53,6.11845214]
[1765204842356,0.71,137.63,137.52,6.11845214]
[1765204842357,6.84805961,137.59,137.52,6.11845214]
[1765204842658,0.72960747,137.59,137.54,6.11845214]
[1765204842832,1.43960747,137.6,137.54,6.11845214]
[1765204843233,1.43960747,137.6,137.52,18.89884993]
[1765204843234,0.71,137.59,137.53,13.38956162]
[1765204843435,6.84805961,137.62,137.55,6.11845214]
[1765204843728,6.11845214,137.6,137.53,6.11845214]
[1765204843944,0.72960747,137.59,137.54,6.11845214]
[1765204844229,0.72960747,137.59,137.51,24.988864]
[1765204844230,1.43960747,137.61,137.56,6.11845214]
[1765204844429,1.43960747,137.61,137.55,6.11845214]
[1765204844633,6.11845214,137.58,137.52,13.39009902]
[1765204844928,0.72960747,137.57,137.52,6.11845214]
[1765204845128,0.72960747,137.57,137.52,13.38989835]
[1765204845328,1.43960747,137.58,137.53,13.38955209]
[1765204846345,1.43960747,137.58,137.52,0.72]
[1765204846346,6.82845214,137.57,137.52,7.27153136]
[1765204846537,0.72960747,137.56,137.52,7.27153136]
[1765204846736,0.72960747,137.56,137.51,14.07845214]
[1765204846737,1.43960747,137.56,137.51,7.96]
[1765204846931,1.43960747,137.56,137.49,7.2730084]
[1765204846932,6.11845214,137.55,137.49,7.2730084]
[1765204847130,6.11845214,137.54,137.47,14.07845214]
[1765204847339,6.82845214,137.54,137.47,14.07845214]
[1765204847545,6.82845214,137.53,137.47,6.11845214]
[1765204847856,6.11845214,137.55,137.49,6.11845214]
[1765204848030,1.43960747,137.57,137.52,6.11845214]
[1765204848358,6.11845214,137.56,137.5,6.11845214]
[1765204848664,6.11845214,137.55,137.48,6.83845214]
[1765204848843,6.11845214,137.53,137.47,7.27416245]
[1765204849045,7.55805961,137.57,137.5,6.11845214]
[1765204849363,7.55805961,137.57,137.45,8.80994492]
[1765204849364,0.71,137.56,137.45,8.80994492]
[1765204849571,6.11845214,137.47,137.43,7.27623198]
[1765204849778,6.11845214,137.49,137.42,6.11845214]
[1765204849933,16.308864,137.51,137.45,13.3938025]
[1765204849934,6.11845214,137.51,137.45,13.3938025]
[1765204850136,8.67,137.52,137.46,6.11845214]
[1765204850137,0.71,137.52,137.46,6.11845214]
[1765204850338,6.82845214,137.51,137.44,14.79845214]
[1765204850647,6.82845214,137.51,137.44,7.96]
[1765204850648,6.11845214,137.49,137.44,7.96]
[1765204850959,0.71,137.5,137.44,6.11845214]
[1765204850960,6.82845214,137.5,137.44,6.11845214]
[1765204851154,6.11845214,137.5,137.44,6.11845214]
[1765204851458,6.11845214,137.53,137.45,14.06378226]
[1765204851629,6.11845214,137.53,137.46,6.11845214]
[1765204852161,6.77845214,137.52,137.45,32.25221441]
[1765204852536,16.308864,137.54,137.2,12.00866641]
[1765204852537,6.11845214,137.46,137.38,6.78845214]
[1765204852870,16.308864,137.49,137.41,6.11845214]
[1765204853170,6.11845214,137.48,137.42,7.27683035]
[1765204853382,6.11845214,137.48,137.4,7.27760697]
[1765204853383,6.11845214,137.45,137.4,7.27760697]
[1765204853676,6.11845214,137.43,137.37,7.27953928]
[1765204853865,6.11845214,137.43,137.34,8.63]
[1765204853866,6.11845214,137.43,137.36,6.11845214]
[1765204854048,6.11845214,137.43,137.36,7.28002679]
[1765204854049,6.11845214,137.42,137.36,7.28002679]
[1765204854234,6.77845214,137.42,137.36,7.28002679]
[1765204854436,0.66,137.45,137.38,6.11845214]
[1765204854637,0.66,137.45,137.39,0.67]
[1765204854885,6.11845214,137.46,137.39,0.67]
[1765204855163,6.11845214,137.45,137.39,0.67]
[1765204855464,6.77845214,137.45,137.38,25.47663128]
[1765204855772,0.66,137.45,137.38,32.26508342]
[1765204856141,6.77845214,137.45,137.38,32.26508342]
[1765204856368,6.11845214,137.41,137.36,23.58861606]
[1765204856566,0.66,137.45,137.33,7.28133985]
[1765204856567,6.11845214,137.38,137.33,7.28133985]
[1765204856867,6.11845214,137.38,137.3,6.78845214]
[1765204856868,6.11845214,137.38,137.34,7.28103121]
[1765204857064,6.77845214,137.37,137.31,7.28233056]
[1765204857452,0.66,137.37,137.31,7.28279076]
[1765204857763,6.77845214,137.37,137.31,25.48976767]
[1765204857937,6.11845214,137.38,137.31,26.15976767]
[1765204858347,6.11845214,137.37,137.31,26.15976767]
[1765204858556,6.77845214,137.38,137.31,32.27821981]
[1765204858766,6.77845214,137.38,137.31,26.15976767]
[1765204858767,0.66,137.38,137.31,26.15976767]
[1765204858976,6.11845214,137.37,137.31,7.95279076]
[1765204859346,6.11845214,137.35,137.3,7.28322287]
[1765204859548,6.11845214,137.34,137.28,7.28438228]
[1765204859754,6.11845214,137.36,137.29,0.7]
[1765204859970,6.83845214,137.36,137.29,0.7]
[1765204860352,6.11845214,137.35,137.29,0.7]
[1765204860551,6.83845214,137.36,137.29,0.7]
[1765204860871,6.11845214,137.34,137.28,25.49533799]
[1765204861041,6.11845214,137.33,137.28,7.28438228]
[1765204861246,6.11845214,137.34,137.28,7.28438228]
[1765204861463,6.11845214,137.34,137.28,25.49533799]
[1765204861744,6.11845214,137.33,137.28,7.28438228]
[1765204861961,6.11845214,137.29,137.25,0.2]
[1765204862160,6.83845214,137.28,137.25,0.2]
[1765204862665,6.11845214,137.3,137.25,0.2]
[1765204862866,136.85867112,137.41,137.26,0.7]
[1765204862867,0.72,137.31,137.26,0.7]
[1765204863068,6.11845214,137.32,137.27,7.28475761]
[1765204863268,6.83845214,137.31,137.27,7.28475761]
[1765204863769,0.72,137.31,137.26,25.49905288]
[1765204863974,6.11845214,137.31,137.26,7.28544368]
[1765204864278,0.72,137.3,137.26,7.28544368]
[1765204864449,6.11845214,137.32,137.27,0.7]
[1765204864649,6.11845214,137.32,137.25,0.2]
[1765204864650,6.11845214,137.28,137.25,0.2]
[1765204864951,6.11845214,137.26,137.25,0.2]
[1765204865153,22.42731614,137.26,137.25,0.2]
[1765204865361,23.14731614,137.26,137.25,0.2]
[1765204865554,31.95726106,137.26,137.25,0.2]
[1765204865771,6.83845214,137.26,137.25,0.2]
[1765204866448,22.93384074,137.26,137.25,0.2]
[1765204866651,25.11880892,137.25,137.24,1498.44861452]
[1765204866868,14.92839706,137.25,137.24,1427.45654055]
[1765204867771,22.21437155,137.25,137.24,1427.45654055]
[1765204868095,6.11845214,137.25,137.24,1427.45654055]
[1765204868295,30.38731614,137.25,137.24,1427.45654055]
[1765204868451,46.48323555,137.25,137.24,1427.45654055]
[1765204868891,30.38731614,137.25,137.24,1427.45654055]
[1765204869054,24.268864,137.25,137.24,1427.45654055]
[1765204869263,30.38731614,137.25,137.24,1427.45654055]
[1765204869975,14.07845214,137.25,137.24,1427.45654055]
[1765204870580,46.48323555,137.25,137.24,1427.45654055]
[1765204870777,30.38731614,137.25,137.24,1427.45654055]
[1765204871482,37.67329063,137.25,137.24,1427.45654055]
[1765204871778,30.38731614,137.25,137.24,1427.45654055]
[1765204872278,14.07845214,137.25,137.24,1427.45654055]
[1765204872483,30.38731614,137.25,137.24,1427.45654055]
[1765204872786,0.72960747,137.27,137.24,1427.45654055]
[1765204872987,6.11845214,137.31,137.25,6.81845214]
[1765204873163,0.72960747,137.3,137.26,6.11845214]
[1765204873477,0.72960747,137.31,137.27,6.11845214]
[1765204873706,0.72960747,137.31,137.26,0.7]
[1765204873707,6.84805961,137.36,137.29,6.11845214]
[1765204873983,6.11845214,137.34,137.3,7.2832307]
[1765204874193,0.72960747,137.33,137.3,7.2832307]
[1765204874393,6.11845214,137.35,137.3,7.9832307]
[1765204874394,6.84805961,137.35,137.3,7.9832307]
[1765204874689,0.72960747,137.35,137.31,0.7]
[1765204874864,6.84805961,137.35,137.3,7.2832307]
[1765204875265,6.84805961,137.35,137.31,0.7]
[1765204875466,6.84805961,137.35,137.3,7.2832307]
[1765204875678,0.72960747,137.35,137.31,6.81845214]
[1765204876005,0.72960747,137.38,137.33,6.11845214]
[1765204876181,0.72960747,137.38,137.34,6.11845214]
[1765204876362,8.70960747,137.39,137.35,6.11845214]
[1765204876705,0.72960747,137.42,137.37,6.11845214]
[1765204877063,0.72960747,137.42,137.35,7.98]
[1765204877064,0.72960747,137.42,137.38,6.81845214]
[1765204877265,0.72960747,137.43,137.39,0.7]
[1765204877483,6.84805961,137.43,137.39,0.7]
[1765204877685,0.72960747,137.43,137.39,0.7]
[1765204878292,17.03847147,137.43,137.39,7.97850571]
[1765204878481,0.72960747,137.43,137.39,7.97850571]
[1765204878675,0.72960747,137.43,137.4,0.7]
[1765204878878,10.23552412,137.42,137.37,7.27954894]
[1765204879079,10.23552412,137.42,137.36,7.97995913]
[1765204879080,0.72960747,137.41,137.36,7.97995913]
[1765204879392,10.23552412,137.39,137.34,0.7]
[1765204879567,0.72960747,137.38,137.34,0.7]
[1765204879767,0.72960747,137.38,137.33,7.28167385]
[1765204880091,0.72960747,137.38,137.34,10.23552412]
[1765204880281,0.72960747,137.38,137.33,26.18599919]
[1765204880282,0.72960747,137.38,137.35,0.7]
[1765204880475,0.72960747,137.39,137.35,0.7]
[1765204880674,10.96513159,137.39,137.35,0.7]
[1765204881187,0.72960747,137.39,137.35,0.7]
[1765204881393,10.96513159,137.39,137.35,0.7]
[1765204881598,0.72960747,137.39,137.35,10.93552412]
[1765204881894,0.72960747,137.39,137.31,7.98]
[1765204881895,10.96513159,137.43,137.38,7.27907992]
[1765204882078,10.23552412,137.42,137.37,7.27943769]
[1765204882276,7.98,137.43,137.38,10.89552412]
[1765204882475,0.72960747,137.46,137.37,7.27943769]
[1765204882672,10.23552412,137.38,137.31,7.28264592]
[1765204882988,10.23552412,137.34,137.31,7.94264592]
[1765204883188,10.23552412,137.34,137.32,0.66]
[1765204883189,0.72960747,137.33,137.32,0.66]
[1765204883381,10.23552412,137.35,137.32,0.66]
[1765204883580,0.72960747,137.34,137.32,0.66]
[1765204883781,0.72960747,137.35,137.26,7.98]
[1765204883983,10.23552412,137.31,137.26,15.26532852]
[1765204884186,10.96513159,137.33,137.28,7.28409255]
[1765204884500,0.72960747,137.34,137.29,10.23552412]
[1765204884677,0.72960747,137.34,137.29,0.66]
[1765204884678,10.96513159,137.34,137.29,0.66]
[1765204884876,10.23552412,137.33,137.3,0.66]
[1765204885077,18.19552412,137.37,137.3,10.89552412]
[1765204885294,10.96513159,137.36,137.3,0.66]
[1765204885500,10.23552412,137.33,137.28,7.94409255]
[1765204885805,10.23552412,137.34,137.29,0.66]
[1765204885986,10.23552412,137.34,137.29,7.94359057]
[1765204886175,0.72960747,137.34,137.29,7.94359057]
[1765204886376,10.23552412,137.32,137.28,7.28427625]
[1765204886575,10.23552412,137.33,137.29,7.94375007]
[1765204886791,10.96513159,137.34,137.3,0.66]
[1765204887107,0.72960747,137.36,137.3,10.89552412]
[1765204887297,0.72960747,137.36,137.31,0.66]
[1765204887697,8.68960747,137.37,137.32,10.23552412]
[1765204887899,8.68960747,137.37,137.31,10.89552412]
[1765204888086,10.23552412,137.36,137.32,0.66]
[1765204888401,0.72960747,137.35,137.32,0.66]
[1765204888987,8.68960747,137.37,137.32,7.94214951]
[1765204889187,18.92513159,137.37,137.32,7.94214951]
[1765204889392,10.23552412,137.35,137.32,0.66]
[1765204889712,10.96513159,137.35,137.32,0.66]
[1765204890483,10.23552412,137.35,137.32,0.66]
[1765204890686,10.23552412,137.35,137.29,7.98]
[1765204890687,10.23552412,137.34,137.29,8.64]
[1765204890908,10.23552412,137.33,137.29,7.94368861]
[1765204891093,10.23552412,137.33,137.29,0.66]
[1765204891409,10.23552412,137.32,137.29,0.66]
[1765204891607,10.23552412,137.32,137.27,7.28473174]
[1765204891792,10.23552412,137.3,137.26,7.94525506]
[1765204892385,10.23552412,137.28,137.24,1428.11654055]
[1765204892907,10.23552412,137.26,137.24,1427.45654055]
[1765204893101,10.23552412,137.25,137.24,1427.45654055]
[1765204893684,10.23552412,137.29,137.24,1428.11654055]
[1765204893900,10.23552412,137.29,137.25,7.94579503]
[1765204894111,10.23552412,137.28,137.25,0.66]
[1765204894298,10.23552412,137.27,137.24,1427.45654055]
[1765204894698,10.23552412,137.27,137.24,1435.40296428]
[1765204894903,34.52438812,137.3,137.25,0.66]
[1765204895115,18.21552412,137.3,137.25,0.66]
[1765204896392,0.72960747,137.32,137.26,35.734577]
[1765204896592,0.72960747,137.32,137.27,10.23552412]
[1765204896809,10.96513159,137.32,137.27,0.66]
[1765204896990,10.96513159,137.32,137.28,0.66]
[1765204897593,0.72960747,137.32,137.28,0.66]
[1765204897787,0.72960747,137.32,137.28,10.89552412]
[1765204897995,8.70960747,137.33,137.28,0.66]
[1765204898319,10.23552412,137.36,137.3,25.49162417]
[1765204898619,10.96513159,137.35,137.31,0.66]
[1765204899104,7.98,137.37,137.31,10.89552412]
[1765204899305,7.98,137.37,137.32,10.23552412]
[1765204899501,10.96513159,137.38,137.33,0.66]
[1765204900105,0.72960747,137.39,137.33,10.89552412]
[1765204900613,35.03208309,137.42,137.35,10.23552412]
[1765204900809,10.23552412,137.41,137.36,0.66]
[1765204900989,0.72960747,137.41,137.38,10.23552412]
[1765204901194,0.72960747,137.43,137.39,0.66]
[1765204901394,10.96513159,137.43,137.39,0.66]
[1765204902518,10.96513159,137.43,137.39,7.93813468]
[1765204902692,18.94513159,137.45,137.39,36.37003408]
[1765204902896,18.94513159,137.45,137.4,0.66]
[1765204903797,8.70960747,137.45,137.4,0.66]
[1765204904012,8.70960747,137.45,137.4,10.89552412]
[1765204904205,8.70960747,137.45,137.41,0.66]
[1765204904404,18.94513159,137.45,137.41,7.93733823]
[1765204904801,8.70960747,137.45,137.42,0.66]
[1765204905826,7.98,137.45,137.42,0.66]
[1765204906012,18.94513159,137.45,137.42,0.66]
[1765204906199,7.98,137.45,137.42,0.66]
[1765204906397,8.70960747,137.45,137.42,0.66]
[1765204906594,8.70960747,137.45,137.42,7.93693701]
[1765204906825,8.70960747,137.45,137.42,0.66]
[1765204907463,8.70960747,137.45,137.42,7.93673953]
[1765204907608,7.98,137.45,137.42,7.93673953]
[1765204907926,0.72960747,137.46,137.43,0.66]
[1765204908519,0.72960747,137.46,137.43,7.93619895]
[1765204908723,0.72960747,137.47,137.43,7.93619895]
[1765204908915,0.72960747,137.47,137.44,0.66]
[1765204909225,10.96513159,137.47,137.44,0.66]
[1765204909429,0.72960747,137.47,137.44,0.66]
[1765204909730,0.72960747,137.47,137.44,10.89552412]
[1765204909907,0.1,137.52,137.44,10.89552412]
[1765204909908,8.10139747,137.52,137.45,10.23552412]
[1765204910106,8.78960747,137.52,137.47,10.23552412]
[1765204910611,19.02513159,137.52,137.48,0.66]
[1765204910940,19.02513159,137.52,137.48,7.93369722]
[1765204911232,8.78960747,137.52,137.49,0.66]
[1765204912332,10.23552412,137.51,137.47,0.66]
[1765204912540,0.72960747,137.5,137.48,0.66]
[1765204912825,0.72960747,137.51,137.48,0.66]
[1765204913223,0.72960747,137.51,137.48,7.9337733]
[1765204913417,0.72960747,137.51,137.49,0.66]
[1765204914127,0.72960747,137.51,137.47,7.93416039]
[1765204914314,0.72960747,137.51,137.48,0.66]
[1765204914714,18.23739916,137.51,137.46,7.93464994]
[1765204915017,18.23739916,137.51,137.47,0.66]
[1765204915233,10.23552412,137.49,137.45,7.27521238]
[1765204915437,10.23552412,137.49,137.45,7.93521238]
[1765204915438,0.72960747,137.48,137.45,7.93521238]
[1765204915737,18.19552412,137.49,137.46,0.66]
[1765204916144,10.23552412,137.48,137.42,0.66]
[1765204916309,10.23552412,137.47,137.43,7.27610956]
[1765204916714,10.23552412,137.47,137.44,0.66]
[1765204916916,10.23552412,137.45,137.42,7.27677209]
[1765204917134,10.23552412,137.44,137.39,18.1959036]
[1765204917311,10.23552412,137.44,137.4,7.93765495]
[1765204917510,10.23552412,137.44,137.4,0.66]
[1765204917714,8.68960747,137.46,137.44,7.27577424]
[1765204917914,103.72960747,137.48,137.44,7.27577424]
[1765204918134,10.23552412,137.46,137.41,0.66]
[1765204918435,10.23552412,137.45,137.41,7.93730747]
[1765204918814,10.23552412,137.45,137.41,0.66]
[1765204919133,10.23552412,137.44,137.41,7.27742695]
[1765204919315,10.23552412,137.44,137.39,18.85563735]
[1765204919316,10.23552412,137.44,137.4,7.27780605]
[1765204919518,10.23552412,137.44,137.4,7.93780605]
[1765204919822,10.23552412,137.44,137.41,7.27738897]
[1765204920333,10.23552412,137.43,137.39,0.66]
[1765204920530,10.23552412,137.43,137.37,7.96]
[1765204920531,10.23552412,137.41,137.37,0.66]
[1765204920721,10.23552412,137.39,137.34,8.62]
[1765204920911,18.19552412,137.4,137.35,18.17599129]
[1765204921113,18.19552412,137.4,137.36,0.66]
[1765204921736,18.19552412,137.4,137.34,7.28103222]
[1765204921737,10.23552412,137.38,137.34,7.28103222]
[1765204921942,15.23802773,137.4,137.3,10.89552412]
[1765204921943,10.23552412,137.36,137.3,10.89552412]
[1765204922121,10.23552412,137.35,137.31,7.28245518]
[1765204922313,10.23552412,137.35,137.32,7.94218141]
[1765204922510,10.23552412,137.35,137.31,7.28263757]
[1765204922742,18.19552412,137.34,137.3,7.28321037]
[1765204922930,18.19552412,137.34,137.28,7.28390147]
[1765204922931,10.23552412,137.33,137.28,7.28390147]
[1765204923249,10.23552412,137.33,137.25,10.23552412]
[1765204923250,10.23552412,137.3,137.25,10.23552412]
[1765204923410,7.96,137.31,137.26,7.28541193]
[1765204923611,10.23552412,137.3,137.26,0.66]
[1765204923828,10.23552412,137.29,137.26,0.66]
[1765204924139,10.23552412,137.29,137.25,7.2858124]
[1765204924315,10.23552412,137.26,137.24,1427.45654055]
[1765204924514,18.19552412,137.25,137.24,1427.45654055]
[1765204924739,27.00546904,137.25,137.24,1427.45654055]
[1765204924939,34.29144353,137.25,137.24,1427.45654055]
[1765204925114,18.19552412,137.27,137.24,1427.45654055]
[1765204925320,16.308864,137.28,137.24,1427.45654055]
[1765204925321,26.54438812,137.28,137.24,1427.45654055]
[1765204925539,7.96,137.27,137.25,0.66]
[1765204925852,8.80994492,137.25,137.24,1427.45654055]
[1765204926034,35.35433304,137.25,137.24,1427.45654055]
[1765204926618,35.35433304,137.25,137.24,1389.78538792]
[1765204926834,26.33144353,137.25,137.24,1259.35978828]
[1765204927637,18.19552412,137.25,137.24,1259.35978828]
[1765204927837,7.96,137.25,137.24,1259.35978828]
[1765204928041,7.96,137.27,137.24,1267.30629367]
[1765204928341,7.96,137.27,137.25,0.66]
[1765204928736,10.23552412,137.31,137.25,10.89552412]
[1765204928920,7.96,137.3,137.26,7.28544368]
[1765204929122,7.96,137.3,137.26,7.94544368]
[1765204929324,7.96,137.3,137.27,0.66]
[1765204930966,7.96,137.3,137.27,7.94444903]
[1765204931261,10.96513159,137.32,137.27,7.94444903]
[1765204931262,0.72960747,137.32,137.28,10.23552412]
[1765204931426,18.24741682,137.32,137.27,7.28444903]
[1765204931626,10.23552412,137.31,137.28,0.66]
[1765204931823,0.72960747,137.32,137.28,10.89552412]
[1765204932053,7.98,137.33,137.31,10.23552412]
[1765204932562,8.70960747,137.36,137.32,0.66]
[1765204932870,8.70960747,137.36,137.32,10.89552412]
[1765204933174,7.98,137.36,137.33,17.51725425]
[1765204933331,0.72960747,137.38,137.35,10.23552412]
[1765204933678,0.72960747,137.38,137.33,26.14605547]
[1765204933679,10.23552412,137.45,137.37,10.23552412]
[1765204933840,10.23552412,137.43,137.37,10.23552412]
[1765204934161,0.72960747,137.42,137.38,10.89552412]
[1765204934328,18.21552412,137.44,137.39,10.23552412]
[1765204934329,0.72960747,137.43,137.39,10.23552412]
[1765204934534,0.72960747,137.43,137.39,10.89552412]
[1765204934747,7.98,137.44,137.4,10.89552412]
[1765204934936,7.98,137.44,137.41,7.93708216]
[1765204935239,0.72960747,137.46,137.42,10.23552412]
[1765204935449,0.72960747,137.46,137.42,0.66]
[1765204935758,0.72960747,137.47,137.43,0.66]
[1765204936058,8.70960747,137.48,137.44,10.23552412]
[1765204936267,10.23552412,137.47,137.43,0.66]
[1765204936443,10.96513159,137.46,137.43,0.66]
[1765204936927,10.23552412,137.44,137.39,0.66]
[1765204937130,10.23552412,137.4,137.36,0.66]
[1765204937334,0.72960747,137.39,137.36,0.66]
[1765204937925,0.72960747,137.4,137.37,7.27921976]
[1765204938360,10.96513159,137.41,137.38,0.66]
[1765204938763,0.72960747,137.41,137.38,7.93901307]
[1765204939131,0.72960747,137.41,137.39,0.66]
[1765204939331,10.96513159,137.41,137.38,0.66]
[1765204939580,8.70960747,137.43,137.38,10.89552412]
[1765204939732,7.98,137.43,137.39,10.89552412]
[1765204940127,7.98,137.43,137.4,10.89552412]
[1765204940546,0.72960747,137.42,137.38,7.93901947]
[1765204940766,0.72960747,137.42,137.39,0.66]
[1765204941132,0.72960747,137.42,137.39,7.93839093]
[1765204941533,6.85465442,137.42,137.36,32.99497469]
[1765204941792,6.85465442,137.42,137.36,0.69]
[1765204941793,6.12504695,137.41,137.36,0.69]
[1765204942059,0.72960747,137.4,137.36,0.69]
[1765204942270,0.72960747,137.4,137.36,6.81504695]
[1765204942462,0.72960747,137.42,137.37,6.12504695]
[1765204942656,0.72960747,137.42,137.39,7.27855011]
[1765204943273,6.85465442,137.46,137.4,14.09284006]
[1765204943565,6.85465442,137.46,137.4,32.287891]
[1765204943776,6.12504695,137.44,137.4,7.96779311]
[1765204943941,0.72960747,137.43,137.4,0.69]
[1765204944138,6.85465442,137.43,137.37,6.81504695]
[1765204944334,6.12504695,137.41,137.36,6.12504695]
[1765204944565,14.81465442,137.43,137.38,6.81504695]
[1765204944769,14.81465442,137.43,137.38,0.69]
[1765204944937,14.81465442,137.43,137.39,7.96828102]
[1765204945368,8.68960747,137.43,137.4,0.69]
[1765204945964,7.96,137.43,137.4,0.69]
[1765204947166,0.72960747,137.42,137.4,0.69]
[1765204947364,7.96,137.43,137.4,7.96790515]
[1765204947964,6.12504695,137.45,137.4,7.96790515]
[1765204947965,0.72960747,137.45,137.41,0.69]
[1765204948164,25.11880892,137.41,137.34,0.69]
[1765204948340,7.96,137.4,137.35,6.81504695]
[1765204948542,0.72960747,137.41,137.36,6.12504695]
[1765204948843,0.72960747,137.41,137.37,6.12504695]
[1765204949044,6.12504695,137.4,137.34,31.6090432]
[1765204949241,6.12504695,137.4,137.36,7.28013977]
[1765204949573,0.72960747,137.41,137.37,6.81504695]
[1765204949861,0.72960747,137.42,137.37,6.81504695]
[1765204950061,0.72960747,137.42,137.38,6.81504695]
[1765204950251,0.72960747,137.43,137.38,6.81504695]
[1765204950586,6.12504695,137.42,137.36,13.40518672]
[1765204950741,6.85465442,137.41,137.36,7.28013977]
[1765204951063,6.85465442,137.41,137.36,7.97013977]
[1765204951268,6.85465442,137.41,137.36,7.28013977]
[1765204951458,6.12504695,137.39,137.33,0.69]
[1765204951661,6.12504695,137.37,137.33,0.69]
[1765204951848,6.12504695,137.35,137.31,7.2824031]
[1765204952163,6.12504695,137.34,137.29,7.28365226]
[1765204952365,6.12504695,137.34,137.3,7.97309174]
[1765204952540,6.12504695,137.36,137.31,7.97266242]
[1765204952739,14.08504695,137.36,137.31,25.48963933]
[1765204952957,14.08504695,137.36,137.32,0.69]
[1765204953164,7.96,137.36,137.32,0.69]
[1765204953360,14.08504695,137.36,137.32,7.97210279]
[1765204953737,14.08504695,137.36,137.32,7.28210279]
[1765204953738,21.36520604,137.36,137.32,7.28210279]
[1765204953946,6.12504695,137.35,137.3,0.69]
[1765204954269,6.12504695,137.35,137.32,7.28187466]
[1765204954461,6.12504695,137.33,137.27,0.69]
[1765204954644,6.12504695,137.31,137.27,7.9747663]
[1765204955180,7.96,137.32,137.27,7.2847663]
[1765204955181,6.12504695,137.3,137.27,7.2847663]
[1765204955344,6.12504695,137.31,137.28,0.69]
[1765204955542,6.12504695,137.32,137.28,7.97398759]
[1765204955856,14.08504695,137.34,137.28,14.09903454]
[1765204956048,7.96,137.34,137.29,0.69]
[1765204956438,14.08504695,137.34,137.29,0.69]
[1765204957485,14.08504695,137.34,137.3,7.28332119]
[1765204957879,14.08504695,137.34,137.31,0.69]
[1765204958180,7.96,137.34,137.31,0.69]
[1765204958374,6.12504695,137.36,137.31,0.69]
[1765204958579,8.68960747,137.37,137.31,6.81504695]
[1765204958887,8.68960747,137.37,137.32,6.12504695]
[1765204959182,8.68960747,137.37,137.32,0.69]
[1765204959183,14.81465442,137.37,137.32,0.69]
[1765204959346,14.81465442,137.37,137.34,7.28119994]
[1765204959347,8.68960747,137.37,137.34,7.28119994]
[1765204959552,0.72960747,137.39,137.34,13.40624689]
[1765204959778,7.96,137.4,137.36,6.12504695]
[1765204960270,7.96,137.4,137.37,0.69]
[1765204960643,6.12504695,137.44,137.38,6.12504695]
[1765204960849,0.72960747,137.43,137.38,6.12504695]
[1765204961153,6.85465442,137.43,137.39,0.69]
[1765204961469,14.13131565,137.43,137.39,0.69]
[1765204961690,6.85465442,137.43,137.39,7.96851838]
[1765204961980,6.12504695,137.42,137.38,7.27886511]
[1765204962151,0.72960747,137.41,137.38,7.27886511]
[1765204962352,0.72960747,137.41,137.38,7.96886511]
[1765204962554,0.72960747,137.42,137.39,7.96851998]
[1765204962752,0.72960747,137.42,137.39,0.69]
[1765204963187,0.72960747,137.42,137.39,7.96852508]
[1765204963499,8.68960747,137.45,137.41,13.4022789]
[1765204963660,15.96498956,137.45,137.41,7.27723195]
[1765204963855,8.68960747,137.45,137.41,7.27723195]
[1765204964065,8.68960747,137.45,137.42,0.69]
[1765204964309,7.96,137.48,137.43,6.12504695]
[1765204964465,7.96,137.48,137.44,6.81504695]